bitfinex-derivatives/quotes_ETHF0:USTF0_20241231
["timestamp","ask_amount","ask_price","bid_price","bid_amount"]
[1735666451114,3.3904164,3370.6,3369.8,3.2078]
[1735666451306,5.1826164,3370.6,3370.5,0.29718]
[1735666451611,0.29718,3370.5,3370.3,0.29719]
[1735666451809,0.29718,3370.5,3369.6,4.8058]
[1735666451810,3.2078,3370.5,3369.6,4.8058]
[1735666452008,3.2078,3369.7,3369.2,3.2078]
[1735666452314,0.29727,3369.5,3369.3,0.29728]
[1735666452516,5.0,3369.7,3368.8,4.8058]
[1735666452808,5.0,3369.7,3369.0,0.74328]
[1735666453016,5.0,3369.7,3369.0,3.95108]
[1735666453017,1.7922,3369.7,3369.0,3.95108]
[1735666453315,0.29726,3369.6,3369.2,0.29728]
[1735666453613,5.29725,3369.7,3369.4,0.29727]
[1735666454013,0.29726,3369.6,3369.4,0.29727]
[1735666454407,1.7922,3369.6,3369.5,0.29726]
[1735666455015,6.5982164,3370.2,3369.0,4.8058]
[1735666455213,3.2078,3369.8,3369.0,1.598]
[1735666455411,3.2078,3369.8,3368.9,3.2078]
[1735666455609,0.29734,3368.6,3368.5,0.36172]
[1735666456113,2.08954,3368.6,3368.5,0.36172]
[1735666456315,0.2974,3368.0,3367.8,3.50521]
[1735666456510,1.7922,3368.0,3367.9,0.29741]
[1735666456911,1.7922,3368.0,3367.8,3.2078]
[1735666457107,2.0896,3368.0,3367.8,0.29741]
[1735666457511,0.29741,3367.9,3367.7,1.598]
[1735666457711,1.7922,3368.0,3367.7,1.598]
[1735666457911,1.7922,3368.0,3367.9,0.29741]
[1735666458322,3.2078,3368.6,3368.3,0.29737]
[1735666458511,3.2078,3368.6,3367.8,3.2078]
[1735666458512,0.29735,3368.5,3367.9,0.2974]
[1735666458714,0.29741,3367.9,3367.4,0.29744]
[1735666458910,3.2078,3368.2,3367.3,3.2078]
[1735666459110,3.2078,3368.2,3366.7,0.4529]
[1735666459111,0.29748,3367.1,3366.8,0.2975]
[1735666459316,0.29746,3367.4,3366.8,0.2975]
[1735666459519,0.29746,3367.4,3367.0,0.29748]
[1735666459822,1.7922,3367.4,3366.7,1.598]
[1735666460112,0.2975,3366.9,3366.6,3.2078]
[1735666460319,0.29748,3367.1,3366.7,0.29751]
[1735666460614,0.29748,3367.1,3365.7,1.16631]
[1735666460615,8.2078,3367.2,3364.7,7.957]
[1735666460816,3.2078,3366.3,3365.7,3.2078]
[1735666461022,0.2975,3366.9,3366.2,0.29755]
[1735666461321,3.2078,3366.6,3365.0,8.57668931]
[1735666461614,3.2078,3366.6,3364.6,10.53683299]
[1735666461615,3.2078,3366.2,3364.6,1.598]
[1735666461815,0.2976,3365.7,3364.9,0.29767]
[1735666462018,3.2078,3365.8,3364.7,3.2078]
[1735666462224,0.29764,3365.3,3364.7,4.8058]
[1735666462416,0.29764,3365.3,3364.9,0.29767]
[1735666462613,3.2078,3365.4,3364.7,1.598]
[1735666463114,3.2078,3365.0,3364.7,1.598]
[1735666463313,3.2078,3365.0,3363.3,1.03998247]
[1735666463515,0.29774,3364.2,3363.6,0.29778]
[1735666463717,3.2078,3364.3,3363.5,3.2078]
[1735666463912,5.0,3365.0,3363.3,1.03998247]
[1735666463913,3.2078,3363.9,3363.3,1.03998247]
[1735666464618,3.2078,3363.9,3363.4,0.2978]
[1735666465019,3.2078,3363.9,3363.3,1.03998247]
[1735666465214,3.2078,3363.9,3362.6,3.2078]
[1735666465215,3.2078,3363.5,3362.8,0.29785]
[1735666465420,3.2078,3363.5,3362.6,3.2078]
[1735666466217,3.5056,3363.5,3362.7,0.29786]
[1735666466413,3.2078,3363.5,3362.6,3.2078]
[1735666466613,3.2078,3363.9,3363.0,3.2078]
[1735666466815,0.4381,3364.4,3364.3,0.29772]
[1735666467018,3.2078,3364.7,3364.2,1.599]
[1735666467515,8.2078,3364.7,3363.9,3.2078]
[1735666467822,8.2078,3364.7,3363.8,3.2078]
[1735666468130,3.2078,3363.9,3362.8,3.2078]
[1735666468318,0.29779,3363.6,3362.9,0.29784]
[1735666468510,0.29779,3363.6,3362.8,3.2078]
[1735666468716,0.2978,3363.5,3362.8,3.2078]
[1735666468917,0.29777,3363.8,3362.8,3.2078]
[1735666469117,3.2078,3363.9,3363.4,0.2978]
[1735666469321,3.2078,3363.9,3362.4,1.62]
[1735666469322,3.2078,3363.9,3363.2,3.2078]
[1735666469524,3.2078,3363.5,3362.4,3.2078]
[1735666469820,3.2078,3363.5,3362.9,3.2078]
[1735666470021,3.2078,3363.5,3363.4,0.2978]
[1735666470221,3.2078,3364.4,3363.4,3.2078]
[1735666470418,3.2078,3364.4,3363.7,3.2078]
[1735666470619,3.2078,3364.4,3364.3,0.29772]
[1735666470820,8.2078,3364.4,3363.1,0.4416]
[1735666471019,0.29781,3363.4,3362.8,0.29785]
[1735666471223,3.2078,3363.2,3362.6,3.2078]
[1735666471422,3.2078,3363.2,3362.8,0.29786]
[1735666471624,3.2078,3363.2,3362.6,3.2078]
[1735666471820,3.2078,3362.8,3362.5,0.29788]
[1735666472022,3.2078,3362.8,3362.4,0.29789]
[1735666472227,3.2078,3362.8,3362.0,0.00218958]
[1735666472429,3.2078,3362.8,3362.5,0.29788]
[1735666472624,8.2078,3362.8,3362.0,0.00218958]
[1735666473028,0.29794,3361.9,3360.9,3.2078]
[1735666473329,3.2078,3361.6,3361.1,0.298]
[1735666473524,3.2078,3361.6,3360.5,3.2078]
[1735666473730,3.2078,3362.1,3361.3,3.2078]
[1735666474126,3.2078,3362.1,3361.1,1.62]
[1735666474433,3.50576,3361.7,3361.2,0.29799]
[1735666474630,3.50576,3361.7,3361.2,0.298]
[1735666474931,3.2078,3361.7,3360.5,4.8278]
[1735666475126,3.2078,3361.7,3360.5,8.09289456]
[1735666475531,3.2078,3361.7,3361.6,0.29796]
[1735666475830,3.2078,3362.4,3361.5,1.621]
[1735666476032,3.2078,3362.4,3361.7,3.2078]
[1735666476231,3.2078,3362.4,3362.3,0.2979]
[1735666476530,3.2078,3362.8,3361.7,8.2078]
[1735666476833,3.71469456,3364.0,3361.6,3.26409456]
[1735666476834,3.2078,3363.2,3362.7,0.29786]
[1735666477037,3.2078,3363.2,3362.1,3.2078]
[1735666477327,3.2078,3362.3,3361.3,3.2078]
[1735666477523,3.2078,3361.7,3360.9,3.2078]
[1735666477724,3.2078,3361.3,3360.6,3.2078]
[1735666478329,3.2078,3361.3,3361.2,0.298]
[1735666478527,3.6668,3362.2,3361.2,3.2078]
[1735666478929,3.6668,3362.2,3362.1,0.29792]
[1735666479133,3.6668,3362.2,3361.9,0.29793]
[1735666479134,3.2078,3362.2,3361.9,0.29793]
[1735666479331,3.2078,3362.2,3361.3,3.2078]
[1735666479532,3.2078,3362.2,3362.1,0.29792]
[1735666479736,3.2078,3362.8,3361.7,3.2078]
[1735666480033,3.2078,3362.8,3361.2,4.88509456]
[1735666480034,3.2078,3362.4,3361.5,3.2078]
[1735666480238,3.2078,3362.4,3361.4,0.74496]
[1735666480434,3.2078,3362.9,3361.7,3.2078]
[1735666480640,3.6668,3363.4,3363.1,0.29782]
[1735666480844,3.2078,3363.4,3363.3,0.29781]
[1735666481044,3.2078,3364.1,3364.0,0.29775]
[1735666481332,3.6362,3364.6,3363.8,3.2078]
[1735666481632,3.6362,3364.6,3363.7,0.29777]
[1735666481633,3.50555,3364.0,3363.7,0.29777]
[1735666481943,3.2078,3364.0,3363.1,3.2078]
[1735666482134,3.2078,3364.0,3363.9,0.29776]
[1735666482339,3.2078,3364.8,3363.9,3.2078]
[1735666482535,3.2078,3365.2,3365.1,0.29765]
[1735666483025,3.2078,3365.2,3364.3,3.2078]
[1735666483226,0.29769,3364.7,3364.2,0.29773]
[1735666483433,3.2078,3364.4,3363.5,1.621]
[1735666483733,3.2078,3364.4,3362.8,3.2078]
[1735666483734,0.29777,3363.8,3362.8,0.29785]
[1735666483926,3.2078,3363.5,3362.8,0.29785]
[1735666484132,0.2978,3363.4,3363.0,0.29783]
[1735666484440,3.2078,3363.9,3362.7,3.2078]
[1735666484628,0.29784,3363.0,3362.3,3.2078]
[1735666484836,3.2078,3363.1,3362.3,3.2078]
[1735666485137,1.42536501,3363.8,3361.3,0.29799]
[1735666485138,0.29796,3361.6,3361.3,0.29799]
[1735666485332,0.29796,3361.6,3360.8,3.2078]
[1735666485333,3.2078,3361.6,3360.8,3.2078]
[1735666485532,3.2078,3361.2,3360.4,3.2078]
[1735666485740,3.2078,3361.2,3360.6,0.29805]
[1735666485935,3.2078,3360.8,3359.5,3.2078]
[1735666486236,3.2078,3360.1,3359.5,3.2078]
[1735666486433,5.0,3360.8,3359.5,3.2078]
[1735666486434,3.2078,3360.5,3359.5,3.2078]
[1735666486642,3.2078,3361.0,3359.6,3.2078]
[1735666486937,3.2078,3361.0,3360.9,0.29802]
[1735666487232,3.2078,3361.7,3361.1,0.298]
[1735666487628,3.2078,3361.7,3361.0,0.29801]
[1735666487831,6.47189456,3361.7,3360.9,3.2078]
[1735666488033,0.29805,3360.6,3360.5,3.2078]
[1735666488234,0.29807,3360.4,3359.9,0.2981]
[1735666488534,0.29807,3360.4,3359.8,3.2078]
[1735666488535,3.2078,3360.8,3359.8,3.2078]
[1735666488735,8.2078,3360.8,3359.8,3.2078]
[1735666488935,3.2078,3360.8,3359.7,3.2078]
[1735666489238,3.50584,3360.8,3359.7,3.2078]
[1735666489545,3.50584,3360.8,3360.3,0.29807]
[1735666489737,3.2078,3360.8,3360.1,3.2078]
[1735666489935,3.2078,3361.3,3360.1,3.2078]
[1735666490235,3.26409456,3361.7,3360.6,1.04318]
[1735666490236,3.50576,3361.7,3360.6,1.04318]
[1735666490537,3.2078,3361.7,3360.7,3.2078]
[1735666490927,3.2078,3361.7,3361.2,0.29799]
[1735666491134,3.2078,3361.7,3360.7,3.2078]
[1735666491335,3.2078,3361.7,3361.6,0.29796]
[1735666491539,3.2078,3362.1,3361.1,3.2078]
[1735666491736,3.2078,3362.1,3361.9,0.29793]
[1735666491927,3.2078,3362.1,3362.0,0.29793]
[1735666492134,3.2078,3362.1,3361.9,0.29793]
[1735666492639,3.2078,3362.1,3362.0,0.29793]
[1735666492834,3.2078,3362.1,3361.3,0.74498]
[1735666493037,3.2078,3362.1,3361.9,0.29793]
[1735666493232,8.2078,3362.1,3361.0,0.8955]
[1735666493442,0.29797,3361.6,3361.1,0.298]
[1735666493639,3.2078,3361.7,3360.7,3.2078]
[1735666493938,3.50575,3361.7,3361.3,0.29799]
[1735666494137,3.2078,3361.7,3360.9,3.2078]
[1735666494748,3.2078,3361.7,3361.6,0.29796]
[1735666495242,3.2078,3362.1,3361.9,0.29793]
[1735666495541,1.68,3363.2,3361.0,0.74504]
[1735666495542,0.4302,3363.2,3361.8,0.74487]
[1735666495741,0.4302,3363.2,3362.1,3.2078]
[1735666495944,0.72802,3363.2,3362.9,0.29785]
[1735666496141,3.2078,3363.4,3362.7,3.2078]
[1735666496342,3.2078,3363.4,3362.1,3.2078]
[1735666496537,3.2078,3363.4,3362.9,0.29784]
[1735666496745,0.29781,3363.3,3362.9,0.29784]
[1735666497042,0.29781,3363.3,3363.0,0.29783]
[1735666497245,3.2078,3363.4,3362.3,3.2078]
[1735666497440,3.2078,3363.4,3362.4,1.68]
[1735666497639,3.2078,3363.4,3363.3,0.29781]
[1735666498039,0.29777,3363.8,3363.5,0.29779]
[1735666498645,3.2078,3363.9,3362.9,3.2078]
[1735666499138,3.2078,3363.9,3363.7,0.29777]
[1735666499441,3.2078,3363.9,3363.8,0.29777]
[1735666499839,6.47189456,3364.3,3362.9,3.2078]
[1735666500038,3.2078,3364.3,3363.4,3.2078]
[1735666500240,3.2078,3364.3,3363.7,0.29778]
[1735666500241,0.29775,3364.0,3363.7,0.29778]
[1735666500536,0.29775,3364.0,3363.4,3.2078]
[1735666500738,0.74445,3363.7,3362.5,3.2078]
[1735666500942,0.29793,3362.0,3361.6,0.75586]
[1735666501140,3.26409456,3362.8,3361.9,0.29793]
[1735666501141,0.29791,3362.3,3361.9,0.29793]
[1735666501443,0.29797,3361.5,3361.4,3.2078]
[1735666501643,3.2078,3362.0,3361.0,3.2078]
[1735666501840,3.2078,3362.0,3360.9,0.4579]
[1735666502037,0.29796,3361.7,3361.4,0.29797]
[1735666502243,0.29795,3361.7,3361.0,1.68]
[1735666502445,0.29795,3361.7,3361.4,0.29797]
[1735666502643,3.2078,3362.0,3361.8,0.29794]
[1735666502944,3.2078,3362.0,3361.1,0.74502]
[1735666503143,3.2078,3362.0,3361.0,1.68]
[1735666503144,2.21431416,3362.3,3362.2,0.29791]
[1735666503852,3.2078,3362.4,3361.9,1.68]
[1735666504046,0.29796,3361.7,3361.5,3.2078]
[1735666504348,0.298,3361.2,3361.0,3.2078]
[1735666504547,0.29801,3361.1,3360.9,0.4579]
[1735666504744,3.2078,3361.5,3360.6,0.4366]
[1735666505047,3.2078,3360.7,3360.0,0.4367]
[1735666505650,3.2078,3360.7,3359.4,3.50596]
[1735666505651,0.29814,3359.7,3359.4,3.50596]
[1735666505848,3.2078,3359.9,3358.9,3.2078]
[1735666506050,3.2078,3359.5,3358.9,3.2078]
[1735666506343,3.2078,3359.5,3358.6,0.4312]
[1735666506344,3.2078,3359.1,3358.3,0.4506]
[1735666506542,3.2078,3359.1,3358.1,3.2078]
[1735666506739,3.2078,3358.7,3358.1,3.2078]
[1735666506945,3.2078,3358.7,3357.4,5.7696]
[1735666507146,3.2078,3358.7,3357.8,3.2078]
[1735666507350,3.2078,3357.9,3357.0,3.2078]
[1735666507647,8.2078,3357.9,3357.0,3.2078]
[1735666507850,0.29835,3357.2,3357.0,3.2078]
[1735666508046,0.29835,3357.2,3355.7,3.26409456]
[1735666508047,0.29843,3356.3,3355.6,0.29849]
[1735666508348,0.29843,3356.3,3355.2,4.56078588]
[1735666508349,3.26409456,3355.7,3355.2,4.56078588]
[1735666508543,3.50632,3355.3,3355.2,4.56078588]
[1735666508850,0.29854,3355.1,3354.2,0.29861]
[1735666509044,3.2078,3354.8,3354.1,2.64498588]
[1735666509246,3.2078,3354.4,3354.0,6.5053647]
[1735666509447,3.56272456,3354.1,3354.0,5.0323647]
[1735666510052,3.26409456,3354.6,3354.0,5.0323647]
[1735666510250,3.2078,3354.5,3354.0,5.0323647]
[1735666510443,3.26409456,3355.1,3354.4,3.18737058]
[1735666510444,0.29855,3355.0,3354.4,3.18737058]
[1735666510640,3.26409456,3355.1,3353.9,3.2078]
[1735666510641,3.2078,3354.8,3353.9,3.2078]
[1735666510843,3.2078,3354.4,3353.4,3.2078]
[1735666511050,3.2078,3354.4,3353.5,3.18737058]
[1735666511247,3.26409456,3354.1,3353.3,0.4655]
[1735666511452,0.29866,3353.8,3353.3,0.4655]
[1735666511746,3.2078,3353.9,3353.3,0.4655]
[1735666511747,0.29866,3353.7,3353.3,0.4655]
[1735666511950,0.29866,3353.8,3353.3,0.4655]
[1735666512248,3.2078,3353.9,3353.3,0.4655]
[1735666512554,2.51391416,3355.2,3353.8,3.48602058]
[1735666512555,3.2078,3354.5,3353.8,3.48602058]
[1735666512744,3.2078,3354.5,3354.1,3.18737058]
[1735666512949,2.21431416,3355.2,3354.4,6.39517058]
[1735666513243,3.2078,3354.7,3353.4,1.743]
[1735666513444,3.2078,3354.3,3353.3,3.2078]
[1735666513952,0.29863,3354.1,3353.3,0.29869]
[1735666514346,3.2078,3353.9,3353.3,0.29869]
[1735666514646,0.2987,3353.3,3352.3,3.2078]
[1735666514845,3.2078,3353.0,3352.3,3.50658]
[1735666515045,3.2078,3352.6,3351.8,0.29882]
[1735666515242,3.2078,3352.6,3350.8,1.08835374]
[1735666515243,3.26409456,3352.0,3350.8,1.08835374]
[1735666515448,6.47189456,3350.9,3350.8,0.62115374]
[1735666515746,6.77080456,3350.9,3350.8,0.62115374]
[1735666515952,18.92845993,3350.9,3349.6,3.2078]
[1735666516247,3.2078,3349.8,3348.5,3.2078]
[1735666516553,12.45656537,3350.9,3350.1,0.62115374]
[1735666516554,0.29892,3350.7,3350.1,0.62115374]
[1735666516741,0.29891,3350.7,3349.9,0.29898]
[1735666517046,0.29891,3350.7,3349.4,1.805]
[1735666517047,7.30887696,3350.6,3349.4,3.2078]
[1735666517247,0.29893,3350.5,3349.8,0.62115374]
[1735666517442,3.2078,3354.7,3350.9,3.2078]
[1735666517647,3.2078,3354.4,3353.6,3.2078]
[1735666517842,7.30887696,3354.3,3353.6,3.2078]
[1735666518044,3.32147125,3354.9,3353.8,3.2078]
[1735666518248,3.32147125,3353.9,3353.6,5.0]
[1735666518457,3.32147125,3353.9,3353.6,8.2078]
[1735666518647,1.76147126,3353.9,3353.8,0.62115374]
[1735666518848,1.76147126,3353.9,3353.8,0.91978374]
[1735666519054,7.37482648,3353.9,3353.2,3.2078]
[1735666519249,3.2078,3353.9,3353.2,3.2078]
[1735666519552,7.37482648,3353.8,3353.3,0.62115374]
[1735666519750,7.37482648,3353.8,3353.7,0.62115374]
[1735666519956,0.29858,3354.5,3353.3,3.2078]
[1735666520145,3.2078,3354.6,3353.8,0.62115374]
[1735666520358,7.37984518,3354.4,3353.8,0.62115374]
[1735666520654,7.37984518,3354.5,3354.0,0.62115374]
[1735666520855,0.29858,3354.5,3353.8,8.82895374]
[1735666521057,0.29856,3354.7,3353.8,5.91978374]
[1735666521250,3.2078,3354.8,3353.8,5.0]
[1735666521449,10.74113587,3354.4,3353.8,5.0]
[1735666521651,7.53333587,3354.7,3353.9,0.62115374]
[1735666521958,3.2078,3355.0,3354.4,3.2078]
[1735666522457,0.29864,3353.8,3353.6,3.2078]
[1735666522654,3.2078,3354.6,3353.7,0.62115374]
[1735666522854,3.2078,3354.6,3353.6,5.0]
[1735666523048,7.40418803,3354.5,3353.7,0.62115374]
[1735666523252,3.2078,3354.5,3353.7,0.62115374]
[1735666523452,3.2078,3355.0,3354.0,0.62115374]
[1735666523652,3.2078,3355.0,3354.0,3.82895374]
[1735666523853,7.40418803,3354.9,3354.0,5.62115374]
[1735666524147,0.7893,3355.6,3354.5,0.62115374]
[1735666524353,0.29852,3355.2,3354.5,0.62115374]
[1735666524551,7.43313516,3355.4,3355.3,0.62115374]
[1735666524756,3.2078,3356.8,3355.5,0.62115374]
[1735666524955,3.2078,3356.8,3355.9,0.62115374]
[1735666525155,0.29839,3356.6,3356.0,0.62115374]
[1735666525459,0.29841,3356.4,3356.0,0.62115374]
[1735666525659,7.56494346,3356.7,3356.0,5.62115374]
[1735666525868,7.56494346,3356.7,3356.1,3.82895374]
[1735666526051,3.2078,3357.2,3356.6,0.62115374]
[1735666526255,0.29841,3356.4,3356.1,8.82895374]
[1735666526457,7.32001529,3356.7,3356.2,0.62115374]
[1735666526659,3.2078,3356.8,3356.2,0.62115374]
[1735666526854,3.2078,3356.8,3356.2,5.62115374]
[1735666527061,7.29291674,3356.7,3356.2,5.29842]
[1735666527256,0.29835,3357.0,3356.7,0.62115374]
[1735666527459,0.29833,3357.2,3356.7,0.62115374]
[1735666527761,10.50071674,3357.5,3356.7,5.62115374]
[1735666527962,10.50071674,3357.5,3356.9,0.62115374]
[1735666528258,7.84767675,3357.8,3357.2,0.62115374]
[1735666528555,7.84764675,3358.2,3357.7,3.82895374]
[1735666528760,7.54939675,3358.2,3357.7,0.62115374]
[1735666528955,7.54939675,3358.3,3357.7,2.56070808]
[1735666529158,3.2078,3358.9,3357.7,2.56070808]
[1735666529357,7.57404153,3358.8,3358.2,3.2078]
[1735666529553,0.2982,3358.7,3358.2,3.2078]
[1735666529753,3.50599,3358.9,3358.2,3.2078]
[1735666529960,7.57404153,3358.8,3358.6,3.50601]
[1735666530165,3.2078,3359.9,3358.6,3.2078]
[1735666530367,3.2078,3359.9,3359.1,3.2078]
[1735666530562,3.2078,3359.5,3358.3,3.2078]
[1735666530858,3.2078,3358.5,3357.3,3.2078]
[1735666531064,3.2078,3357.6,3356.6,0.29839]
[1735666531263,0.29826,3358.1,3356.0,1.938]
[1735666531264,3.2078,3357.0,3356.0,1.938]
[1735666531463,3.2078,3357.0,3355.1,4.85475072]
[1735666531464,3.2078,3356.1,3354.7,0.74637]
[1735666531653,3.2078,3355.0,3354.7,1.938]
[1735666531851,3.2078,3355.5,3354.2,3.2078]
[1735666532057,3.2078,3354.9,3354.1,7.46]
[1735666532255,3.2078,3355.1,3354.2,1.938]
[1735666532455,3.2078,3354.9,3354.8,0.29855]
[1735666532661,3.2078,3354.9,3353.2,10.6668]
[1735666532859,3.2078,3354.2,3354.1,0.29861]
[1735666533059,0.29863,3353.9,3353.1,0.29869]
[1735666533264,3.2078,3353.2,3353.1,0.2987]
[1735666533455,3.2078,3353.7,3353.6,0.29865]
[1735666533661,3.2078,3354.4,3353.1,7.001]
[1735666533862,3.2078,3354.8,3354.7,0.29856]
[1735666534167,1.9915,3354.8,3354.7,0.29856]
[1735666534569,1.9915,3354.8,3354.5,2.001]
[1735666534570,11.9915,3354.8,3354.5,2.001]
[1735666534769,11.9915,3354.8,3353.8,2.001]
[1735666534965,3.2078,3354.0,3352.6,3.2078]
[1735666535171,3.2078,3353.6,3352.8,0.29872]
[1735666535467,3.2078,3352.9,3352.8,0.29872]
[1735666536169,2.39793,3352.9,3352.8,5.29872]
[1735666536365,3.2078,3354.2,3352.8,5.0]
[1735666536672,0.7587,3355.5,3354.2,0.2986]
[1735666536673,3.2078,3354.3,3354.2,0.2986]
[1735666537166,1.9915,3354.3,3354.2,0.2986]
[1735666537377,1.5197,3354.3,3354.2,0.2986]
[1735666537563,1.5197,3354.3,3353.7,5.2088]
[1735666537564,10.0,3354.3,3353.7,2.001]
[1735666537761,3.2078,3354.5,3354.4,0.29858]
[1735666538968,13.2078,3354.5,3353.0,3.2078]
[1735666539166,3.2078,3353.8,3353.5,0.29865]
[1735666539367,3.2078,3353.8,3352.8,2.001]
[1735666539567,3.2078,3353.3,3352.8,2.001]
[1735666539770,3.2078,3353.3,3353.2,0.29869]
[1735666540976,3.2078,3353.3,3352.1,0.7891]
[1735666540977,13.2078,3353.3,3352.2,2.001]
[1735666541162,3.2078,3352.9,3352.1,3.9969]
[1735666541368,3.2078,3352.9,3352.7,0.29873]
[1735666541670,0.29875,3352.6,3352.0,0.2988]
[1735666541975,0.2988,3352.0,3350.8,0.782]
[1735666542168,7.46579063,3352.5,3350.8,0.782]
[1735666542169,3.2078,3351.9,3350.8,0.782]
[1735666542366,3.2078,3354.3,3351.7,3.2078]
[1735666542673,3.2078,3354.3,3353.8,0.29863]
[1735666542970,13.2078,3354.3,3353.5,3.2078]
[1735666543174,3.2078,3354.7,3354.6,0.29856]
[1735666543477,0.76,3355.9,3353.9,3.2078]
[1735666543478,3.2078,3355.4,3355.3,0.2985]
[1735666543666,10.0,3355.9,3355.6,0.29847]
[1735666543869,10.0,3355.9,3354.9,3.2078]
[1735666544472,0.29851,3355.3,3354.6,3.50636]
[1735666544677,3.5063,3355.4,3354.7,0.29855]
[1735666544970,3.5063,3355.4,3353.9,5.2088]
[1735666544971,3.2078,3355.0,3353.9,5.2088]
[1735666545170,0.29854,3354.9,3354.3,0.29859]
[1735666545373,18.2078,3355.0,3354.0,0.29861]
[1735666545575,18.2078,3355.0,3353.3,3.2078]
[1735666545576,3.2078,3354.2,3353.3,3.2078]
[1735666545777,0.29862,3354.1,3353.6,0.29865]
[1735666546072,3.2078,3353.7,3352.4,3.2078]
[1735666546375,0.29879,3352.1,3351.6,0.29883]
[1735666546577,0.29879,3352.1,3351.4,3.2078]
[1735666546578,3.16511493,3352.5,3351.4,3.2078]
[1735666546972,3.2078,3352.4,3351.0,3.2078]
[1735666547172,3.2078,3352.4,3350.4,3.96311493]
[1735666547173,3.2078,3351.8,3350.6,3.2078]
[1735666547374,3.2078,3351.8,3351.5,0.29883]
[1735666547683,10.0,3351.8,3351.1,3.2078]
[1735666547876,10.0,3351.8,3351.7,0.29882]
[1735666548079,3.2078,3352.4,3351.6,3.2078]
[1735666548389,3.2078,3352.4,3351.3,3.16511493]
[1735666548390,0.29871,3353.0,3352.3,0.29876]
[1735666548684,0.29871,3353.0,3352.1,0.29879]
[1735666548882,3.2078,3353.1,3352.4,3.2078]
[1735666549076,12.55178,3353.1,3352.4,3.2078]
[1735666549276,12.55178,3353.1,3352.7,0.29873]
[1735666549475,0.29873,3352.8,3352.3,0.29877]
[1735666549677,0.29873,3352.8,3352.0,2.002]
[1735666549678,12.55178,3353.1,3352.2,3.2078]
[1735666550078,3.2078,3353.5,3352.7,0.29873]
[1735666550282,12.55178,3353.5,3353.2,0.29868]
[1735666550579,17.55178,3353.5,3352.2,3.2078]
[1735666550782,0.29867,3353.4,3352.9,0.29871]
[1735666551078,0.29869,3353.3,3352.6,3.2078]
[1735666551278,12.55178,3353.5,3352.6,3.2078]
[1735666551785,12.55178,3353.5,3352.2,3.2078]
[1735666552084,0.29868,3353.4,3352.8,0.29872]
[1735666552278,12.55178,3353.5,3352.2,3.2078]
[1735666552479,0.29868,3353.3,3352.2,3.2078]
[1735666552780,12.55178,3353.5,3352.2,3.2078]
[1735666553000,3.2078,3353.1,3352.3,3.2078]
[1735666553185,3.2078,3352.7,3351.5,3.2078]
[1735666553484,0.29874,3352.6,3352.1,0.29878]
[1735666553677,3.2078,3352.8,3352.4,0.29875]
[1735666553978,0.29876,3352.4,3351.8,0.2988]
[1735666554178,0.29876,3352.5,3351.9,0.2988]
[1735666554375,9.34398,3352.5,3352.4,0.29876]
[1735666554572,9.34398,3352.5,3351.3,3.2078]
[1735666554777,9.34398,3352.5,3351.6,3.2078]
[1735666555079,9.34398,3352.5,3351.7,0.74706]
[1735666555280,9.34398,3352.5,3351.6,3.2078]
[1735666555477,3.2078,3352.0,3350.8,3.2078]
[1735666555672,12.55178,3352.0,3350.4,5.2098]
[1735666555873,3.2078,3351.6,3350.9,0.29889]
[1735666556176,3.2078,3351.6,3350.4,5.2098]
[1735666556384,3.2078,3350.8,3349.9,3.2078]
[1735666556884,9.34398,3350.8,3349.9,3.2078]
[1735666557078,9.34398,3350.8,3350.7,0.29891]
[1735666557577,9.34398,3350.8,3350.7,3.50671]
[1735666557783,3.2078,3351.6,3350.8,0.74726]
[1735666557980,12.55178,3351.6,3351.5,0.29884]
[1735666558184,12.55178,3351.6,3351.3,0.29885]
[1735666558387,12.85061,3351.6,3351.2,0.29886]
[1735666558587,12.55178,3351.6,3350.7,3.2078]
[1735666558787,9.34398,3351.6,3351.2,3.2078]
[1735666558992,9.34398,3351.6,3351.5,0.29884]
[1735666560089,9.34398,3351.6,3351.3,3.2078]
[1735666560280,0.29888,3351.1,3350.9,3.2078]
[1735666560491,3.2078,3351.3,3349.8,3.2078]
[1735666560784,0.29889,3350.9,3350.5,0.29892]
[1735666560989,0.79,3351.0,3350.1,3.2078]
[1735666561289,0.79,3351.0,3350.9,0.29889]
[1735666561290,10.13398,3351.0,3350.9,0.29889]
[1735666561684,10.13398,3351.0,3350.8,0.29889]
[1735666561990,10.13398,3351.0,3350.9,0.29889]
[1735666562187,9.34398,3351.0,3350.9,0.29889]
[1735666562390,9.34398,3351.0,3350.9,3.50669]
[1735666562590,9.34398,3351.0,3350.7,0.2989]
[1735666562885,9.34398,3351.0,3350.4,3.2078]
[1735666563091,9.34398,3351.0,3350.8,0.29889]
[1735666563282,9.34398,3351.0,3350.9,0.29889]
[1735666563488,3.2078,3352.1,3350.8,3.2078]
[1735666563789,3.2078,3352.1,3351.0,3.2078]
[1735666563989,0.29884,3351.5,3351.1,0.29887]
[1735666564291,12.55178,3352.1,3351.3,0.29885]
[1735666564497,3.2078,3351.7,3350.0,3.95523]
[1735666564684,3.2078,3351.7,3350.4,3.2078]
[1735666564685,3.2078,3351.5,3350.4,3.2078]
[1735666564983,9.34398,3351.7,3350.8,3.2078]
[1735666565189,0.29885,3351.4,3350.8,3.2078]
[1735666565379,3.2078,3351.6,3350.4,3.2078]
[1735666565585,3.2078,3351.6,3350.8,3.2078]
[1735666565885,9.34398,3351.6,3351.5,0.29884]
[1735666566383,3.2078,3352.7,3351.2,3.2078]